[Event "*** SCC Grand Prix: Titled Tuesday Blitz"]
[Site "Chess.com"]
[Date "2020.06.23"]
[Round "3"]
[White "Alindsay211"]
[Black "pedromartinez91"]
[Result "1/2-1/2"]
[WhiteElo "2275"]
[BlackElo "2493"]
[TimeControl "180+1"]
[EndTime "10:31:57 PDT"]
[Termination "Game drawn - insufficient material"]

1. e4 {[%clk 0:03:00.9]} 1... e6 {[%clk 0:03:00]} 2. Nc3 {[%clk 0:02:59.5]} 2...
d5 {[%clk 0:03:00.4]} 3. Nf3 {[%clk 0:03:00.1]} 3... dxe4 {[%clk 0:02:58.4]} 4.
Nxe4 {[%clk 0:03:00]} 4... Nd7 {[%clk 0:02:59.3]} 5. d4 {[%clk 0:02:59.3]} 5...
Ngf6 {[%clk 0:03:00.2]} 6. Neg5 {[%clk 0:02:59.6]} 6... h6 {[%clk 0:02:52.9]} 7.
Nxe6 {[%clk 0:02:40.6]} 7... Qe7 {[%clk 0:02:33]} 8. Bd3 {[%clk 0:02:11.2]} 8...
Qxe6+ {[%clk 0:02:29.2]} 9. Kd2 {[%clk 0:02:04.2]} 9... Bd6 {[%clk 0:02:02.9]}
10. Re1 {[%clk 0:02:02.4]} 10... Bf4+ {[%clk 0:02:02.9]} 11. Kc3 {[%clk
0:01:37.5]} 11... Nd5+ {[%clk 0:01:58.9]} 12. Kb3 {[%clk 0:01:37.9]} 12... Ne3+
{[%clk 0:01:41.9]} 13. c4 {[%clk 0:01:37.3]} 13... Qb6+ {[%clk 0:01:35.9]} 14.
Kc3 {[%clk 0:01:28.4]} 14... O-O {[%clk 0:00:59.7]} 15. Bxe3 {[%clk 0:01:25]}
15... Bxe3 {[%clk 0:00:53]} 16. Rxe3 {[%clk 0:01:20.5]} 16... c5 {[%clk
0:00:53.3]} 17. d5 {[%clk 0:01:15]} 17... Nf6 {[%clk 0:00:47.6]} 18. h3 {[%clk
0:01:05.6]} 18... Qa5+ {[%clk 0:00:43.4]} 19. Kc2 {[%clk 0:01:03.6]} 19... b5
{[%clk 0:00:43.9]} 20. Qd2 {[%clk 0:01:00.7]} 20... Qb6 {[%clk 0:00:43.4]} 21.
cxb5 {[%clk 0:00:57.5]} 21... c4 {[%clk 0:00:35.4]} 22. Bxc4 {[%clk 0:00:45]}
22... Bf5+ {[%clk 0:00:35.5]} 23. Kd1 {[%clk 0:00:43]} 23... Rac8 {[%clk
0:00:35.3]} 24. b3 {[%clk 0:00:42.1]} 24... Rfd8 {[%clk 0:00:34.5]} 25. Ke1
{[%clk 0:00:40.7]} 25... Be6 {[%clk 0:00:29.4]} 26. Rd1 {[%clk 0:00:40.6]} 26...
Bxd5 {[%clk 0:00:29.3]} 27. Bxd5 {[%clk 0:00:23.4]} 27... Rxd5 {[%clk
0:00:30.2]} 28. Rd3 {[%clk 0:00:23.7]} 28... Rxd3 {[%clk 0:00:28]} 29. Qxd3
{[%clk 0:00:24.6]} 29... Qa5+ {[%clk 0:00:25.2]} 30. Kf1 {[%clk 0:00:24.8]}
30... Qxa2 {[%clk 0:00:25.5]} 31. Ne5 {[%clk 0:00:19.6]} 31... Qa5 {[%clk
0:00:25.5]} 32. Kg1 {[%clk 0:00:18.4]} 32... Qc7 {[%clk 0:00:25.3]} 33. Nc4
{[%clk 0:00:17.4]} 33... Qc5 {[%clk 0:00:25.3]} 34. Ne3 {[%clk 0:00:11.5]} 34...
Re8 {[%clk 0:00:23.4]} 35. Qd4 {[%clk 0:00:11.4]} 35... Qxb5 {[%clk 0:00:23.3]}
36. Qxa7 {[%clk 0:00:10.8]} 36... Qxb3 {[%clk 0:00:23]} 37. Qd4 {[%clk
0:00:11.3]} 37... Re4 {[%clk 0:00:22.2]} 38. Qd3 {[%clk 0:00:11.1]} 38... Qxd3
{[%clk 0:00:21.4]} 39. Rxd3 {[%clk 0:00:12]} 39... g6 {[%clk 0:00:22]} 40. Rd8+
{[%clk 0:00:11.9]} 40... Kg7 {[%clk 0:00:22.2]} 41. g3 {[%clk 0:00:12.8]} 41...
h5 {[%clk 0:00:22.5]} 42. Kg2 {[%clk 0:00:13.3]} 42... h4 {[%clk 0:00:22.8]} 43.
Kf3 {[%clk 0:00:12.7]} 43... hxg3 {[%clk 0:00:23.1]} 44. fxg3 {[%clk 0:00:13.5]}
44... Re6 {[%clk 0:00:22.5]} 45. Rd4 {[%clk 0:00:13.4]} 45... Re5 {[%clk
0:00:22.2]} 46. Ng4 {[%clk 0:00:13.4]} 46... Nxg4 {[%clk 0:00:22]} 47. Kxg4
{[%clk 0:00:14.3]} 47... Re3 {[%clk 0:00:20.9]} 48. Kf4 {[%clk 0:00:14.4]} 48...
Ra3 {[%clk 0:00:20.6]} 49. Rc4 {[%clk 0:00:13.7]} 49... Kf6 {[%clk 0:00:19.3]}
50. h4 {[%clk 0:00:14.1]} 50... Kg7 {[%clk 0:00:19.2]} 51. Rd4 {[%clk
0:00:14.1]} 51... Ra5 {[%clk 0:00:19.4]} 52. Kg4 {[%clk 0:00:14.4]} 52... Rf5
{[%clk 0:00:19.2]} 53. Rf4 {[%clk 0:00:14.8]} 53... Rb5 {[%clk 0:00:18.8]} 54.
Rd4 {[%clk 0:00:14.4]} 54... Ra5 {[%clk 0:00:17]} 55. Rc4 {[%clk 0:00:14.5]}
55... Kh6 {[%clk 0:00:17]} 56. Rf4 {[%clk 0:00:11.8]} 56... f5+ {[%clk
0:00:15.4]} 57. Kh3 {[%clk 0:00:11.5]} 57... Kh5 {[%clk 0:00:14.8]} 58. Rc4
{[%clk 0:00:11.1]} 58... Ra3 {[%clk 0:00:14.5]} 59. Rc5 {[%clk 0:00:10.5]} 59...
Kh6 {[%clk 0:00:14.1]} 60. Rc4 {[%clk 0:00:10.7]} 60... Kg7 {[%clk 0:00:14.2]}
61. Rd4 {[%clk 0:00:09.5]} 61... Kf6 {[%clk 0:00:14.4]} 62. Rc4 {[%clk
0:00:09.5]} 62... Ke5 {[%clk 0:00:14.4]} 63. Rb4 {[%clk 0:00:09.4]} 63... Kf6
{[%clk 0:00:14.4]} 64. Rc4 {[%clk 0:00:09.4]} 64... Re3 {[%clk 0:00:14.5]} 65.
Rb4 {[%clk 0:00:09.3]} 65... Kg7 {[%clk 0:00:14.7]} 66. Rc4 {[%clk 0:00:09.2]}
66... Kh6 {[%clk 0:00:15.1]} 67. Rb4 {[%clk 0:00:09.2]} 67... Re1 {[%clk
0:00:15.5]} 68. Rc4 {[%clk 0:00:09.2]} 68... Rh1+ {[%clk 0:00:15.6]} 69. Kg2
{[%clk 0:00:09.6]} 69... Rb1 {[%clk 0:00:16.5]} 70. Kf3 {[%clk 0:00:09.9]} 70...
Rb3+ {[%clk 0:00:16.6]} 71. Kg2 {[%clk 0:00:10.4]} 71... Kh5 {[%clk 0:00:16.4]}
72. Rd4 {[%clk 0:00:10.5]} 72... Re3 {[%clk 0:00:16.3]} 73. Rc4 {[%clk
0:00:10.6]} 73... Re4 {[%clk 0:00:16.6]} 74. Rc6 {[%clk 0:00:07.9]} 74... Re5
{[%clk 0:00:12.8]} 75. Rc4 {[%clk 0:00:07.3]} 75... Re4 {[%clk 0:00:12.6]} 76.
Rc6 {[%clk 0:00:07.3]} 76... Ra4 {[%clk 0:00:13.2]} 77. Rb6 {[%clk 0:00:05.6]}
77... Rc4 {[%clk 0:00:12.9]} 78. Rd6 {[%clk 0:00:05.2]} 78... Rc2+ {[%clk
0:00:13.1]} 79. Kh3 {[%clk 0:00:04.7]} 79... Rc4 {[%clk 0:00:13.8]} 80. Rd3
{[%clk 0:00:04.7]} 80... Re4 {[%clk 0:00:13.4]} 81. Rb3 {[%clk 0:00:04.9]} 81...
f4 {[%clk 0:00:13.7]} 82. gxf4 {[%clk 0:00:04.4]} 82... Rxf4 {[%clk 0:00:14.6]}
83. Rc3 {[%clk 0:00:04.9]} 83... Rxh4+ {[%clk 0:00:14.6]} 84. Kg3 {[%clk
0:00:05.7]} 84... Ra4 {[%clk 0:00:15.1]} 85. Rc5+ {[%clk 0:00:06]} 85... g5
{[%clk 0:00:16]} 86. Rc8 {[%clk 0:00:05.6]} 86... Rg4+ {[%clk 0:00:16.3]} 87.
Kf2 {[%clk 0:00:05.4]} 87... Rb4 {[%clk 0:00:16.9]} 88. Kg3 {[%clk 0:00:05.5]}
88... Rb3+ {[%clk 0:00:16.7]} 89. Kg2 {[%clk 0:00:05.6]} 89... Kg4 {[%clk
0:00:17]} 90. Rc4+ {[%clk 0:00:05.4]} 90... Kh5 {[%clk 0:00:17.3]} 91. Rc8
{[%clk 0:00:05.4]} 91... Kh4 {[%clk 0:00:17.5]} 92. Rc4+ {[%clk 0:00:04.6]}
92... g4 {[%clk 0:00:17.9]} 93. Rc8 {[%clk 0:00:04.4]} 93... Rb2+ {[%clk
0:00:18.3]} 94. Kg1 {[%clk 0:00:04.8]} 94... Kg3 {[%clk 0:00:18.7]} 95. Rc3+
{[%clk 0:00:05.1]} 95... Kh4 {[%clk 0:00:19.2]} 96. Rc8 {[%clk 0:00:05.1]} 96...
Kh3 {[%clk 0:00:19.5]} 97. Rc3+ {[%clk 0:00:02.9]} 97... g3 {[%clk 0:00:19.6]}
98. Rc1 {[%clk 0:00:03.4]} 98... Rh2 {[%clk 0:00:19.3]} 99. Rc5 {[%clk 0:00:02]}
99... Rg2+ {[%clk 0:00:18.4]} 100. Kh1 {[%clk 0:00:02.5]} 100... Ra2 {[%clk
0:00:17.2]} 101. Rh5+ {[%clk 0:00:02.7]} 101... Kg4 {[%clk 0:00:17.2]} 102. Rh8
{[%clk 0:00:03.6]} 102... Ra1+ {[%clk 0:00:12.7]} 103. Kg2 {[%clk 0:00:02.8]}
103... Ra2+ {[%clk 0:00:13.1]} 104. Kg1 {[%clk 0:00:03.1]} 104... Kf4 {[%clk
0:00:11.6]} 105. Rf8+ {[%clk 0:00:02.5]} 105... Kg5 {[%clk 0:00:11.7]} 106. Rg8+
{[%clk 0:00:03.1]} 106... Kh4 {[%clk 0:00:12.1]} 107. Rh8+ {[%clk 0:00:03.4]}
107... Kg4 {[%clk 0:00:12.6]} 108. Rg8+ {[%clk 0:00:03.9]} 108... Kf3 {[%clk
0:00:12.9]} 109. Rf8+ {[%clk 0:00:04.4]} 109... Ke4 {[%clk 0:00:13.3]} 110. Rg8
{[%clk 0:00:04.9]} 110... Ra1+ {[%clk 0:00:11.4]} 111. Kg2 {[%clk 0:00:03.3]}
111... Re1 {[%clk 0:00:10.7]} 112. Rxg3 {[%clk 0:00:01.5]} 112... Re2+ {[%clk
0:00:10.3]} 113. Kh3 {[%clk 0:00:02.4]} 113... Re3 {[%clk 0:00:09.9]} 114. Kg4
{[%clk 0:00:03.3]} 114... Rxg3+ {[%clk 0:00:08.9]} 115. Kxg3 {[%clk 0:00:04.2]}
1/2-1/2

[Event "*** SCC Grand Prix: Titled Tuesday Blitz"]
[Site "Chess.com"]
[Date "2020.06.23"]
[Round "4"]
[White "SilviusTiberius"]
[Black "Chuchofrio1"]
[Result "1-0"]
[WhiteElo "2417"]
[BlackElo "2219"]
[TimeControl "180+1"]
[EndTime "10:33:50 PDT"]
[Termination "SilviusTiberius won by resignation"]

1. e4 {[%clk 0:03:00.9]} 1... c5 {[%clk 0:02:57.7]} 2. Nf3 {[%clk 0:03:00.9]}
2... e6 {[%clk 0:02:57.8]} 3. d4 {[%clk 0:03:01.4]} 3... cxd4 {[%clk 0:02:58.1]}
4. Nxd4 {[%clk 0:03:02]} 4... Nf6 {[%clk 0:02:58.4]} 5. Nc3 {[%clk 0:03:02.4]}
5... Nc6 {[%clk 0:02:58.6]} 6. Ndb5 {[%clk 0:03:02.3]} 6... Bc5 {[%clk
0:02:57.3]} 7. Bf4 {[%clk 0:02:59.9]} 7... O-O {[%clk 0:02:56.3]} 8. Bc7 {[%clk
0:03:00.3]} 8... Qe7 {[%clk 0:02:56.2]} 9. Bd6 {[%clk 0:03:00.8]} 9... Bxd6
{[%clk 0:02:54.7]} 10. Qxd6 {[%clk 0:03:01.3]} 10... Qd8 {[%clk 0:02:54.9]} 11.
O-O-O {[%clk 0:02:56.5]} 11... a6 {[%clk 0:02:53.7]} 12. Nd4 {[%clk 0:02:53.9]}
12... Na5 {[%clk 0:02:46.9]} 13. h4 {[%clk 0:02:42.1]} 13... b5 {[%clk
0:02:45.9]} 14. h5 {[%clk 0:02:38.9]} 14... b4 {[%clk 0:02:43.9]} 15. Qxb4
{[%clk 0:02:36.2]} 15... Rb8 {[%clk 0:02:40.3]} 16. Qxb8 {[%clk 0:02:34.4]} 1-0

[Event "*** SCC Grand Prix: Titled Tuesday Blitz"]
[Site "Chess.com"]
[Date "2020.06.23"]
[Round "4"]
[White "simplerXiao"]
[Black "j2806"]
[Result "1-0"]
[WhiteElo "2394"]
[BlackElo "2067"]
[TimeControl "180+1"]
[EndTime "10:33:56 PDT"]
[Termination "simplerXiao won by checkmate"]

1. c4 {[%clk 0:02:58.2]} 1... Nf6 {[%clk 0:02:59.5]} 2. g3 {[%clk 0:02:57.1]}
2... e6 {[%clk 0:02:59.2]} 3. Bg2 {[%clk 0:02:55.1]} 3... d5 {[%clk 0:02:59.3]}
4. Nf3 {[%clk 0:02:53.8]} 4... Be7 {[%clk 0:02:58.8]} 5. O-O {[%clk 0:02:53]}
5... O-O {[%clk 0:02:58.5]} 6. b3 {[%clk 0:02:51.7]} 6... c5 {[%clk 0:02:57.8]}
7. Bb2 {[%clk 0:02:51.7]} 7... Nc6 {[%clk 0:02:57.6]} 8. cxd5 {[%clk 0:02:50.8]}
8... exd5 {[%clk 0:02:56.9]} 9. d4 {[%clk 0:02:49.3]} 9... cxd4 {[%clk
0:02:54.1]} 10. Nxd4 {[%clk 0:02:49.3]} 10... Nxd4 {[%clk 0:02:53.5]} 11. Qxd4
{[%clk 0:02:47.6]} 11... Be6 {[%clk 0:02:50.9]} 12. Nc3 {[%clk 0:02:44.7]} 12...
a6 {[%clk 0:02:44.7]} 13. Rad1 {[%clk 0:02:41.7]} 13... Qa5 {[%clk 0:02:39.5]}
14. Nxd5 {[%clk 0:02:30.7]} 14... Nxd5 {[%clk 0:02:25]} 15. Qxg7# {[%clk
0:02:29.3]} 1-0

[Event "*** SCC Grand Prix: Titled Tuesday Blitz"]
[Site "Chess.com"]
[Date "2020.06.23"]
[Round "4"]
[White "bazar-wokzal"]
[Black "Bastiandash"]
[Result "1-0"]
[WhiteElo "2420"]
[BlackElo "2222"]
[TimeControl "180+1"]
[EndTime "10:34:09 PDT"]
[Termination "bazar-wokzal won by checkmate"]

1. e4 {[%clk 0:03:00.9]} 1... c5 {[%clk 0:02:59.8]} 2. c3 {[%clk 0:03:00.5]}
2... Nf6 {[%clk 0:02:59.1]} 3. e5 {[%clk 0:03:00.7]} 3... Nd5 {[%clk 0:02:59.7]}
4. d4 {[%clk 0:03:01.3]} 4... cxd4 {[%clk 0:03:00.6]} 5. cxd4 {[%clk 0:03:01.7]}
5... e6 {[%clk 0:03:00.8]} 6. Nc3 {[%clk 0:03:01.4]} 6... Nxc3 {[%clk
0:03:00.6]} 7. bxc3 {[%clk 0:03:02]} 7... Qc7 {[%clk 0:03:01.5]} 8. Bd2 {[%clk
0:03:02.1]} 8... d6 {[%clk 0:03:02.4]} 9. f4 {[%clk 0:03:02.2]} 9... Nd7 {[%clk
0:03:00.3]} 10. Nf3 {[%clk 0:03:02.3]} 10... b6 {[%clk 0:02:46]} 11. Bd3 {[%clk
0:03:02]} 11... Bb7 {[%clk 0:02:41.7]} 12. O-O {[%clk 0:03:01.8]} 12... Rc8
{[%clk 0:02:39.5]} 13. f5 {[%clk 0:02:58.9]} 13... dxe5 {[%clk 0:02:31.9]} 14.
fxe6 {[%clk 0:02:57.9]} 14... fxe6 {[%clk 0:02:32.8]} 15. Ng5 {[%clk 0:02:55.4]}
15... Be7 {[%clk 0:02:21.7]} 16. Nxe6 {[%clk 0:02:46.9]} 16... Qc6 {[%clk
0:02:20.4]} 17. Qh5+ {[%clk 0:02:46.3]} 17... g6 {[%clk 0:02:12.4]} 18. Qxg6+
{[%clk 0:02:46]} 18... hxg6 {[%clk 0:02:11.1]} 19. Bxg6# {[%clk 0:02:45.1]} 1-0

[Event "*** SCC Grand Prix: Titled Tuesday Blitz"]
[Site "Chess.com"]
[Date "2020.06.23"]
[Round "4"]
[White "PauloCesarCosta_sad"]
[Black "dodorox"]
[Result "1/2-1/2"]
[WhiteElo "2259"]
[BlackElo "2032"]
[TimeControl "180+1"]
[EndTime "10:34:13 PDT"]
[Termination "Game drawn by agreement"]

1. Nf3 {[%clk 0:02:58.2]} 1... d5 {[%clk 0:02:58.1]} 2. d4 {[%clk 0:02:56.8]}
2... Nf6 {[%clk 0:02:55.3]} 3. c4 {[%clk 0:02:56.7]} 3... e6 {[%clk 0:02:55.3]}
4. Nc3 {[%clk 0:02:57]} 4... Bb4 {[%clk 0:02:54.1]} 5. Bg5 {[%clk 0:02:56.5]}
5... h6 {[%clk 0:02:52.8]} 6. Bxf6 {[%clk 0:02:56]} 6... Qxf6 {[%clk 0:02:52.1]}
7. e3 {[%clk 0:02:55.8]} 7... O-O {[%clk 0:02:46.7]} 8. Rc1 {[%clk 0:02:41.3]}
8... Nc6 {[%clk 0:02:36.7]} 9. Be2 {[%clk 0:02:37.2]} 9... a6 {[%clk 0:02:34]}
10. O-O {[%clk 0:02:35.3]} 10... dxc4 {[%clk 0:02:20.2]} 11. Bxc4 {[%clk
0:02:34.4]} 11... Bxc3 {[%clk 0:02:13.7]} 12. Rxc3 {[%clk 0:02:29.9]} 12... e5
{[%clk 0:02:14]} 1/2-1/2

[Event "*** SCC Grand Prix: Titled Tuesday Blitz"]
[Site "Chess.com"]
[Date "2020.06.23"]
[Round "4"]
[White "GOGIEFF"]
[Black "12teen"]
[Result "1-0"]
[WhiteElo "2893"]
[BlackElo "2679"]
[TimeControl "180+1"]
[EndTime "10:34:46 PDT"]
[Termination "GOGIEFF won by resignation"]

1. d4 {[%clk 0:03:00.9]} 1... e6 {[%clk 0:02:59.5]} 2. c4 {[%clk 0:02:59.5]}
2... b6 {[%clk 0:03:00.4]} 3. a3 {[%clk 0:02:57.5]} 3... Bb7 {[%clk 0:03:00.9]}
4. Nc3 {[%clk 0:02:57.5]} 4... Nf6 {[%clk 0:03:01.4]} 5. Nf3 {[%clk 0:02:57.7]}
5... d5 {[%clk 0:03:01.7]} 6. cxd5 {[%clk 0:02:57.7]} 6... exd5 {[%clk
0:03:01.9]} 7. Bg5 {[%clk 0:02:56.8]} 7... Nbd7 {[%clk 0:03:02.1]} 8. e3 {[%clk
0:02:57]} 8... Be7 {[%clk 0:03:02.5]} 9. Bd3 {[%clk 0:02:57]} 9... O-O {[%clk
0:03:02.9]} 10. O-O {[%clk 0:02:55.7]} 10... Ne4 {[%clk 0:03:03.3]} 11. Bf4
{[%clk 0:02:51.4]} 11... Ndf6 {[%clk 0:03:00.5]} 12. Rc1 {[%clk 0:02:49.8]}
12... c5 {[%clk 0:03:00.4]} 13. Ne5 {[%clk 0:02:42.7]} 13... a6 {[%clk
0:02:51.5]} 14. dxc5 {[%clk 0:02:33.5]} 14... Nxc5 {[%clk 0:02:50.5]} 15. Bf5
{[%clk 0:02:30.5]} 15... Ne6 {[%clk 0:02:40.1]} 16. Bxe6 {[%clk 0:02:30.3]}
16... fxe6 {[%clk 0:02:41]} 17. Ne2 {[%clk 0:02:30.5]} 17... Bd6 {[%clk
0:02:30]} 18. Nd4 {[%clk 0:02:29.8]} 18... Qe7 {[%clk 0:02:24.3]} 19. Qb3 {[%clk
0:02:24.2]} 19... b5 {[%clk 0:02:21.2]} 20. Nec6 {[%clk 0:02:19.4]} 20... Bxc6
{[%clk 0:02:14.9]} 21. Bxd6 {[%clk 0:02:16.9]} 21... Qxd6 {[%clk 0:02:15.5]} 22.
Rxc6 {[%clk 0:02:17.1]} 22... Qd7 {[%clk 0:02:14.5]} 23. Rxe6 {[%clk 0:02:16.5]}
23... Ne4 {[%clk 0:02:14.1]} 24. Rxe4 {[%clk 0:02:15.4]} 1-0

[Event "*** SCC Grand Prix: Titled Tuesday Blitz"]
[Site "Chess.com"]
[Date "2020.06.23"]
[Round "4"]
[White "CroissantNeuf"]
[Black "biaf13"]
[Result "1-0"]
[WhiteElo "2386"]
[BlackElo "2018"]
[TimeControl "180+1"]
[EndTime "10:35:03 PDT"]
[Termination "CroissantNeuf won by resignation"]

1. e4 {[%clk 0:03:00.9]} 1... c5 {[%clk 0:02:41]} 2. Nf3 {[%clk 0:02:59]} 2...
d6 {[%clk 0:02:40.4]} 3. Bb5+ {[%clk 0:02:58.1]} 3... Bd7 {[%clk 0:02:40]} 4.
Bxd7+ {[%clk 0:02:57.7]} 4... Qxd7 {[%clk 0:02:40.9]} 5. O-O {[%clk 0:02:57.5]}
5... Nc6 {[%clk 0:02:41]} 6. c3 {[%clk 0:02:56.7]} 6... Nf6 {[%clk 0:02:40.4]}
7. d4 {[%clk 0:02:57.1]} 7... cxd4 {[%clk 0:02:37.9]} 8. cxd4 {[%clk 0:02:57.6]}
8... Nxe4 {[%clk 0:02:37.9]} 9. d5 {[%clk 0:02:57.6]} 9... Nd8 {[%clk
0:02:37.3]} 10. Re1 {[%clk 0:02:56]} 10... Nf6 {[%clk 0:02:36.7]} 11. Bg5 {[%clk
0:02:50.1]} 11... h6 {[%clk 0:02:34.5]} 12. Bh4 {[%clk 0:02:47.6]} 12... g5
{[%clk 0:02:33.5]} 13. Bg3 {[%clk 0:02:47.3]} 13... Bg7 {[%clk 0:02:33.4]} 14.
Nc3 {[%clk 0:02:45.5]} 14... O-O {[%clk 0:02:32.3]} 15. Nd4 {[%clk 0:02:44.5]}
15... Rc8 {[%clk 0:02:20.5]} 16. Qd3 {[%clk 0:02:38.9]} 16... Rc5 {[%clk
0:02:10.5]} 17. Nf5 {[%clk 0:02:37.1]} 17... b5 {[%clk 0:01:56.7]} 18. Rxe7
{[%clk 0:02:23]} 18... Qc8 {[%clk 0:01:49.7]} 19. Rxa7 {[%clk 0:02:18.1]} 19...
b4 {[%clk 0:01:48.8]} 20. Ne7+ {[%clk 0:02:17.4]} 1-0

[Event "*** SCC Grand Prix: Titled Tuesday Blitz"]
[Site "Chess.com"]
[Date "2020.06.23"]
[Round "4"]
[White "Marcin"]
[Black "ChessMavenYeti"]
[Result "1-0"]
[WhiteElo "2389"]
[BlackElo "2092"]
[TimeControl "180+1"]
[EndTime "10:35:27 PDT"]
[Termination "Marcin won by checkmate"]

1. d4 {[%clk 0:03:00.9]} 1... Nf6 {[%clk 0:02:49.9]} 2. c4 {[%clk 0:03:00.2]}
2... e6 {[%clk 0:02:49.4]} 3. Nf3 {[%clk 0:02:59.1]} 3... b6 {[%clk 0:02:48.9]}
4. g3 {[%clk 0:02:59.3]} 4... Ba6 {[%clk 0:02:48.5]} 5. Qc2 {[%clk 0:02:59.7]}
5... c5 {[%clk 0:02:47.9]} 6. d5 {[%clk 0:02:59.4]} 6... Bb7 {[%clk 0:02:45.2]}
7. Bg2 {[%clk 0:02:54.3]} 7... exd5 {[%clk 0:02:44.7]} 8. cxd5 {[%clk
0:02:55.2]} 8... Bxd5 {[%clk 0:02:41.8]} 9. Nc3 {[%clk 0:02:53.6]} 9... Bc6
{[%clk 0:02:40.2]} 10. e4 {[%clk 0:02:50.7]} 10... d6 {[%clk 0:02:36]} 11. O-O
{[%clk 0:02:49.9]} 11... Be7 {[%clk 0:02:35.2]} 12. Bf4 {[%clk 0:02:45.5]} 12...
O-O {[%clk 0:02:33.8]} 13. Rad1 {[%clk 0:02:45.3]} 13... Re8 {[%clk 0:02:28.2]}
14. e5 {[%clk 0:02:44.2]} 14... Nh5 {[%clk 0:02:19.9]} 15. exd6 {[%clk
0:02:33.2]} 15... Bf8 {[%clk 0:02:05.3]} 16. d7 {[%clk 0:02:11.1]} 16... Re7
{[%clk 0:01:36.4]} 17. Bxb8 {[%clk 0:02:04.1]} 17... Rxb8 {[%clk 0:01:35]} 18.
Ng5 {[%clk 0:02:04.1]} 18... Bxg2 {[%clk 0:01:31.5]} 19. Qxh7# {[%clk
0:02:03.5]} 1-0

[Event "*** SCC Grand Prix: Titled Tuesday Blitz"]
[Site "Chess.com"]
[Date "2020.06.23"]
[Round "4"]
[White "RestartingChess"]
[Black "inegrepus"]
[Result "1-0"]
[WhiteElo "2445"]
[BlackElo "2226"]
[TimeControl "180+1"]
[EndTime "10:35:39 PDT"]
[Termination "RestartingChess won by checkmate"]

1. e4 {[%clk 0:03:00.9]} 1... e5 {[%clk 0:02:58.9]} 2. Nf3 {[%clk 0:03:01.2]}
2... Nc6 {[%clk 0:02:59.3]} 3. Bc4 {[%clk 0:03:01.4]} 3... Nf6 {[%clk 0:02:59]}
4. d3 {[%clk 0:02:58.2]} 4... Be7 {[%clk 0:02:53.3]} 5. O-O {[%clk 0:02:58]}
5... O-O {[%clk 0:02:52.6]} 6. h3 {[%clk 0:02:58.4]} 6... d5 {[%clk 0:02:53]} 7.
exd5 {[%clk 0:02:58.1]} 7... Nxd5 {[%clk 0:02:52.8]} 8. Re1 {[%clk 0:02:57.7]}
8... Nb6 {[%clk 0:02:49.4]} 9. Bb3 {[%clk 0:02:53.2]} 9... Qd6 {[%clk
0:02:46.4]} 10. Nc3 {[%clk 0:02:53]} 10... Be6 {[%clk 0:02:45.7]} 11. Nb5 {[%clk
0:02:50.6]} 11... Qd7 {[%clk 0:02:45]} 12. Bxe6 {[%clk 0:02:25]} 12... fxe6
{[%clk 0:02:43.7]} 13. a4 {[%clk 0:02:25]} 13... Bf6 {[%clk 0:02:40.3]} 14. Bg5
{[%clk 0:02:09]} 14... a6 {[%clk 0:02:38.1]} 15. Nc3 {[%clk 0:02:07.9]} 15...
Nd5 {[%clk 0:02:32.7]} 16. Ne4 {[%clk 0:02:08]} 16... Nf4 {[%clk 0:02:30]} 17.
Bxf4 {[%clk 0:02:04]} 17... exf4 {[%clk 0:02:29.6]} 18. Nc5 {[%clk 0:02:04.6]}
18... Qd5 {[%clk 0:02:25]} 19. Nxe6 {[%clk 0:02:04]} 19... Rfe8 {[%clk
0:02:24.5]} 20. Nxc7 {[%clk 0:02:03.5]} 20... Rxe1+ {[%clk 0:02:16.3]} 21. Qxe1
{[%clk 0:02:03.9]} 21... Qd8 {[%clk 0:02:15.1]} 22. Nxa8 {[%clk 0:02:03.5]}
22... Qxa8 {[%clk 0:02:15.5]} 23. Qe6+ {[%clk 0:02:04.1]} 23... Kh8 {[%clk
0:02:15.4]} 24. Re1 {[%clk 0:02:03.2]} 24... h6 {[%clk 0:02:14.6]} 25. c3 {[%clk
0:01:58.9]} 25... Qa7 {[%clk 0:02:14.4]} 26. d4 {[%clk 0:01:58.8]} 26... Na5
{[%clk 0:02:12.4]} 27. Qc8+ {[%clk 0:01:56.3]} 27... Kh7 {[%clk 0:02:11.4]} 28.
Qf5+ {[%clk 0:01:57]} 28... Kg8 {[%clk 0:02:09.9]} 29. Re8+ {[%clk 0:01:54.2]}
29... Kf7 {[%clk 0:02:10]} 30. Qe6+ {[%clk 0:01:54.5]} 30... Kg6 {[%clk
0:02:10.2]} 31. Ne5+ {[%clk 0:01:54.5]} 31... Kg5 {[%clk 0:02:06.3]} 32. Qg4#
{[%clk 0:01:53.3]} 1-0

[Event "*** SCC Grand Prix: Titled Tuesday Blitz"]
[Site "Chess.com"]
[Date "2020.06.23"]
[Round "4"]
[White "eCztery"]
[Black "stanyga"]
[Result "1-0"]
[WhiteElo "2368"]
[BlackElo "2596"]
[TimeControl "180+1"]
[EndTime "10:35:46 PDT"]
[Termination "eCztery won by resignation"]

1. e4 {[%clk 0:03:00.9]} 1... c5 {[%clk 0:02:57.7]} 2. Nf3 {[%clk 0:02:57.7]}
2... d6 {[%clk 0:02:57]} 3. d4 {[%clk 0:02:57]} 3... cxd4 {[%clk 0:02:57.2]} 4.
Qxd4 {[%clk 0:02:56.1]} 4... Nc6 {[%clk 0:02:56.5]} 5. Bb5 {[%clk 0:02:56.3]}
5... Bd7 {[%clk 0:02:55.8]} 6. Bxc6 {[%clk 0:02:53]} 6... Bxc6 {[%clk
0:02:55.6]} 7. Nc3 {[%clk 0:02:53.6]} 7... Nf6 {[%clk 0:02:54.9]} 8. Bg5 {[%clk
0:02:54.2]} 8... e6 {[%clk 0:02:51.8]} 9. O-O-O {[%clk 0:02:54.6]} 9... Be7
{[%clk 0:02:51.4]} 10. Rhe1 {[%clk 0:02:54.4]} 10... O-O {[%clk 0:02:50.1]} 11.
Kb1 {[%clk 0:02:54.9]} 11... Qa5 {[%clk 0:02:48.2]} 12. Qd2 {[%clk 0:02:55]}
12... Qc7 {[%clk 0:02:07.6]} 13. Nd4 {[%clk 0:02:54.1]} 13... Rfd8 {[%clk
0:01:59.3]} 14. f4 {[%clk 0:02:53.5]} 14... Rac8 {[%clk 0:01:58.9]} 15. h4
{[%clk 0:02:49.8]} 15... Be8 {[%clk 0:01:58.4]} 16. f5 {[%clk 0:02:45.9]} 16...
e5 {[%clk 0:01:49.6]} 17. Bxf6 {[%clk 0:02:43.2]} 17... gxf6 {[%clk 0:01:20.8]}
18. Nd5 {[%clk 0:02:39.1]} 18... Qd7 {[%clk 0:01:20.6]} 19. Qh6 {[%clk
0:02:26.9]} 1-0